bitfinex/quotes_ETHUSD_20240824
["timestamp","ask_amount","ask_price","bid_price","bid_amount"]
[1724484476335,7.2329,2765.2,2764.9,0.08948403]
[1724484476489,7.2329,2765.2,2764.6,7.4832908]
[1724484476689,7.2329,2765.2,2765.0,0.08944757]
[1724484476889,7.2329,2765.2,2764.6,5.91444]
[1724484477090,3.61643,2765.2,2765.1,0.08941111]
[1724484477291,7.23289,2765.2,2764.6,5.91444]
[1724484477513,3.61643,2765.2,2765.1,0.08941111]
[1724484477792,7.23291,2765.2,2765.1,0.08941111]
[1724484478188,3.61643,2765.2,2765.1,0.08941111]
[1724484478431,7.23291,2765.2,2764.6,5.91444]
[1724484478670,7.2329,2765.2,2764.7,1.34733617]
[1724484478964,7.2329,2765.2,2764.7,0.08955696]
[1724484480875,3.6165,2765.1,2764.7,0.08955696]
[1724484482845,2.4787,2765.0,2764.7,0.08955696]
[1724484483880,3.6165,2765.1,2764.7,0.08955696]
[1724484484069,3.6165,2765.1,2764.7,1.38597872]
[1724484488050,6.09513,2765.2,2764.7,1.38597872]
[1724484488263,6.09513,2765.2,2764.7,0.08955696]
[1724484491280,3.61619,2765.4,2764.8,9.12604733]
[1724484491442,7.23237,2765.4,2764.9,4.96391786]
[1724484491789,3.61618,2765.4,2764.9,3.70621893]
[1724484492656,8.49917329,2765.4,2764.9,0.08948893]
[1724484493426,8.49914329,2765.4,2764.9,0.08948893]
[1724484494487,4.88295329,2765.4,2764.9,0.08948893]
[1724484495171,8.49915329,2765.4,2764.9,0.08948893]
[1724484496685,4.88295329,2765.4,2764.9,0.08948893]
[1724484497183,8.49916329,2765.4,2764.9,0.08948893]
[1724484497544,3.61625,2765.3,2764.9,0.08948893]
[1724484505689,17.10806,2766.2,2765.5,3.61597]
[1724484505903,7.45,2766.2,2765.8,7.29814329]
[1724484506072,3.61455,2766.6,2766.0,1.26677329]
[1724484506272,3.61455,2766.6,2766.0,2.00548973]
[1724484506472,7.22921,2766.6,2766.0,5.62077973]
[1724484506671,7.22921,2766.6,2766.1,0.08892852]
[1724484506672,3.61455,2766.6,2766.1,0.08892852]
[1724484506969,3.61468,2766.5,2766.1,0.08892852]
[1724484508975,3.61481,2766.4,2766.1,0.08892852]
[1724484511872,3.61481,2766.4,2766.2,2.4158]
[1724484512099,3.61481,2766.4,2766.3,0.08787658]
[1724484512324,3.61481,2766.4,2766.2,2.4158]
[1724484512519,3.61481,2766.4,2766.3,0.08787658]
[1724484513010,3.61481,2766.4,2766.2,2.4158]
[1724484513324,3.61481,2766.4,2766.3,0.08786674]
[1724484513674,3.61481,2766.4,2766.2,2.4158]
[1724484513880,3.61434,2766.8,2766.3,0.08785198]
[1724484514075,3.61434,2766.8,2766.2,3.99802493]
[1724484514492,3.61434,2766.8,2766.3,0.08785198]
[1724484514920,3.61434,2766.8,2766.3,3.6149]
[1724484515079,3.61434,2766.8,2766.4,0.84910805]
[1724484517184,3.61454,2766.6,2766.4,0.08781556]
[1724484517612,3.61454,2766.6,2766.2,3.68257329]
[1724484517797,7.22908,2766.6,2766.5,0.08777914]
[1724484518453,3.6147,2766.5,2766.0,2.4158]
[1724484518583,3.6147,2766.5,2766.0,5.4158]
[1724484518785,3.6147,2766.5,2766.0,6.74559333]
[1724484520008,3.61454,2766.6,2766.0,6.74559333]
[1724484520009,3.61454,2766.6,2766.0,10.36089333]
[1724484521029,7.22919,2766.6,2766.0,10.36089333]
[1724484521233,3.61454,2766.6,2766.0,10.36089333]
[1724484522448,3.61435,2766.8,2766.1,3.61515]
[1724484522649,3.61442,2766.7,2766.2,1.52428166]
[1724484523013,3.61442,2766.7,2766.2,2.79105495]
[1724484523215,11.06417,2766.9,2766.4,2.4844]
[1724484523950,11.06417,2766.9,2766.5,0.08739558]
[1724484524733,3.61431,2766.8,2766.5,0.08739558]
[1724484525157,3.61431,2766.8,2766.3,3.6149]
[1724484525318,7.22869,2766.8,2766.6,0.08735916]
[1724484525652,7.22869,2766.8,2766.2,4.00868166]
[1724484525852,3.61451,2766.7,2766.2,4.0349695]
[1724484526663,3.61456,2766.6,2766.2,4.0349695]
[1724484529464,3.61442,2766.7,2766.2,4.0349695]
[1724484530261,3.61431,2766.8,2766.2,4.0349695]
[1724484531340,7.2287,2766.8,2766.2,7.6500295]
[1724484531517,3.61431,2766.8,2766.2,7.6500295]
[1724484535550,3.61431,2766.8,2766.2,8.91680279]
[1724484535748,3.61431,2766.8,2766.3,4.86811928]
[1724484538782,3.61431,2766.8,2766.4,0.0874025]
[1724484560486,7.22871,2766.8,2766.4,0.0874025]
[1724484560886,7.22871,2766.8,2766.2,7.98496758]
[1724484561085,7.22871,2766.8,2766.5,0.08730708]
[1724484561305,7.22871,2766.8,2766.2,6.09943]
[1724484561470,3.61431,2766.8,2766.6,0.08727066]
[1724484561670,3.61431,2766.8,2766.2,7.9849955]
[1724484561914,3.61431,2766.8,2766.7,0.08723424]
[1724484562433,3.61431,2766.8,2766.2,7.98499931]
[1724484562642,3.61431,2766.8,2766.7,0.08723424]
[1724484562804,3.61431,2766.8,2766.2,7.98499931]
[1724484563004,3.61431,2766.8,2766.7,0.08723424]
[1724484563741,3.61431,2766.8,2766.2,6.09943]
[1724484564245,3.61431,2766.8,2766.3,0.08737992]
[1724484564593,3.61431,2766.8,2766.2,6.09943]
[1724484564794,3.61431,2766.8,2766.4,0.0873435]
[1724484565002,3.61431,2766.8,2766.3,0.08737992]
[1724484565232,3.61431,2766.8,2766.5,0.08730708]
[1724484565400,3.61431,2766.8,2766.4,0.0873435]
[1724484565613,7.22869,2766.8,2766.6,0.08727066]
[1724484565939,7.22869,2766.8,2766.5,0.08730708]
[1724484566140,3.61431,2766.8,2766.6,0.08727066]
[1724484566312,3.61431,2766.8,2766.2,6.09943]
[1724484566510,3.61431,2766.8,2766.3,1.05883092]
[1724484566715,1.26677329,2766.7,2766.3,0.08737992]
[1724484567020,1.26677329,2766.7,2766.2,0.33933994]
[1724484567228,1.26677329,2766.7,2766.4,0.0873435]
[1724484567401,1.26677329,2766.7,2766.3,0.08737992]
[1724484567739,3.61455,2766.6,2766.5,0.08730708]
[1724484567935,3.61455,2766.6,2766.4,0.0873435]
[1724484568236,3.61455,2766.6,2766.5,0.08730708]
[1724484568934,3.61455,2766.6,2766.2,0.33934005]
[1724484569095,3.61455,2766.6,2766.3,0.08737992]
[1724484569293,1.26677329,2766.7,2766.1,7.2302]
[1724484569536,1.26677329,2766.7,2766.2,4.57623268]
[1724484569695,7.22871,2766.8,2766.2,3.31919756]
[1724484570325,7.22871,2766.8,2766.2,3.31919759]
[1724484570510,7.22871,2766.8,2766.2,1.43364954]
[1724484570923,7.22871,2766.8,2766.2,3.23178165]
[1724484571095,7.22871,2766.8,2766.3,0.08743402]
[1724484571625,7.22871,2766.8,2766.4,0.0873976]
[1724484572030,7.22871,2766.8,2766.2,6.84684165]
[1724484572207,7.22871,2766.8,2766.5,0.08736118]
[1724484572416,7.22871,2766.8,2766.2,5.50060846]
[1724484572625,7.22871,2766.8,2766.6,0.08732476]
[1724484572919,7.22871,2766.8,2766.7,0.08728834]
[1724484573098,7.22869,2766.8,2766.2,5.50060628]
[1724484573298,7.22869,2766.8,2766.2,7.16206542]
[1724484573549,3.61442,2766.7,2766.3,0.08743402]
[1724484573735,3.61442,2766.7,2766.2,1.66145914]
[1724484573937,3.61442,2766.7,2766.3,0.08743402]
[1724484574103,3.61442,2766.7,2766.2,1.66145914]
[1724484574439,3.61442,2766.7,2766.3,0.08743402]
[1724484574949,3.61442,2766.7,2766.2,1.66145914]
[1724484575118,3.61442,2766.7,2766.3,0.08743402]
[1724484575447,3.61442,2766.7,2766.1,7.2302]
[1724484575751,3.61442,2766.7,2766.2,1.25705827]
[1724484575950,3.61442,2766.7,2766.1,8.8167518]
[1724484576108,3.61442,2766.7,2766.3,0.08743402]
[1724484576303,3.61442,2766.7,2766.2,0.08747045]
[1724484576536,3.61442,2766.7,2766.3,0.08743402]
[1724484576854,3.61442,2766.7,2766.2,3.61504]
[1724484577025,3.61442,2766.7,2766.4,0.0873976]
[1724484577224,3.61442,2766.7,2766.3,0.08743402]
[1724484577420,3.61442,2766.7,2766.5,0.08736118]
[1724484577628,3.61442,2766.7,2766.4,0.0873976]
[1724484577812,3.61442,2766.7,2766.6,0.08732476]
[1724484578012,3.61442,2766.7,2766.5,0.08736118]
[1724484578258,3.61442,2766.7,2766.6,0.08732476]
[1724484578610,3.61442,2766.7,2766.2,3.61504]
[1724484578805,3.61442,2766.7,2766.6,0.08732476]
[1724484579009,3.61442,2766.7,2766.2,3.61504]
[1724484579249,3.61442,2766.7,2766.6,0.08732476]
[1724484579425,3.61442,2766.7,2766.2,3.61504]
[1724484579627,3.61442,2766.7,2766.6,0.08732476]
[1724484579841,3.61442,2766.7,2766.2,3.61504]
[1724484580048,3.61442,2766.7,2766.6,0.08732476]
[1724484580373,3.61442,2766.7,2766.2,3.61504]
[1724484580733,3.61442,2766.7,2766.3,0.08743402]
[1724484580972,3.61442,2766.7,2766.2,3.61504]
[1724484581277,3.61442,2766.7,2766.3,0.08743402]
[1724484581576,3.61442,2766.7,2766.1,3.61508]
[1724484581760,3.61442,2766.7,2766.2,1.19886896]
[1724484588511,3.61442,2766.7,2766.2,0.08747045]
[1724484591664,3.61442,2766.7,2766.2,0.08747045]
[1724484591866,1.26677329,2766.3,2766.2,0.08747045]
[1724484592066,7.22430329,2766.3,2766.2,0.08747045]
[1724484592318,3.61521,2766.1,2765.5,7.84240327]
[1724484592536,3.61521,2766.1,2765.5,11.45836778]
[1724484592667,3.61521,2766.1,2765.5,9.19034507]
[1724484592869,3.61521,2766.1,2765.5,9.19033507]
[1724484593096,3.61521,2766.1,2765.5,7.30435729]
[1724484593312,2.3426,2766.0,2765.5,4.96375729]
[1724484593635,5.95753,2766.3,2765.6,3.59792144]
[1724484593772,9.57255,2766.3,2765.7,4.78713298]
[1724484593974,5.95753,2766.3,2765.7,4.78713298]
[1724484594508,9.57257,2766.3,2765.7,4.78713298]
[1724484594694,3.61507,2766.2,2765.7,4.78713298]
[1724484595303,3.61494,2766.3,2765.7,6.05385627]
[1724484595506,3.61494,2766.3,2765.8,0.83944563]
[1724484597311,5.95735,2766.5,2766.0,2.3406]
[1724484598439,9.57212,2766.5,2766.0,2.3406]
[1724484598825,9.57212,2766.5,2766.1,0.07902601]
[1724484599797,3.61484,2766.4,2766.1,0.07902601]
[1724484601838,3.61475,2766.5,2766.1,0.07902601]
[1724484602625,3.61455,2766.6,2766.1,2.07597723]
[1724484603779,3.61469,2766.5,2766.1,2.07597723]
[1724484604682,3.61469,2766.5,2766.1,0.80920394]
[1724484604987,7.22945,2766.5,2766.1,0.80920394]
[1724484605353,3.61482,2766.4,2766.1,0.07902601]
[1724484610443,3.61506,2766.2,2766.1,0.07902601]
[1724484612959,7.22973,2766.4,2766.1,0.07902601]
[1724484614774,3.61498,2766.3,2766.1,0.07902601]
[1724484616666,6.00958,2766.3,2766.1,0.07902601]
[1724484617093,3.61506,2766.2,2766.1,0.07902601]
[1724484617712,3.61506,2766.2,2765.7,1.26677329]
[1724484618112,3.61496,2766.3,2765.8,0.07674829]
[1724484619024,3.61508,2766.2,2765.8,0.07674829]
[1724484620016,3.61531,2766.1,2765.8,0.07674829]
[1724484620510,6.00968,2766.2,2765.9,0.07671185]
[1724484620687,6.00968,2766.2,2765.7,1.26677329]
[1724484620890,6.00968,2766.2,2765.8,0.07674829]
[1724484621275,3.61508,2766.2,2765.8,0.07674829]
[1724484621513,3.61498,2766.3,2765.8,3.69229829]
[1724484621715,3.61498,2766.3,2765.9,2.4435]
[1724484621939,3.61498,2766.3,2766.0,0.07667542]
[1724484623487,7.23047,2766.1,2765.7,2.4435]
[1724484623700,7.23047,2766.1,2765.8,0.07664652]
[1724484623701,3.61519,2766.1,2765.8,0.07664652]
[1724484628478,3.13444914,2767.2,2766.0,1.26677329]
[1724484628684,3.61367,2767.3,2766.5,3.71027329]
[1724484628989,3.614,2767.1,2766.6,0.07634528]
[1724484631124,5.05482499,2767.3,2766.6,0.07634528]
[1724484632332,5.05482499,2767.3,2766.7,3.61437]
[1724484632755,8.66855499,2767.3,2766.8,0.07627245]
[1724484633125,8.66855499,2767.3,2766.7,3.61437]
[1724484633431,3.61379,2767.2,2766.8,0.07627245]
[1724484633629,3.61379,2767.2,2766.7,3.61437]
[1724484633841,3.61379,2767.2,2766.9,0.07623604]
[1724484634019,3.61379,2767.2,2766.8,0.07627245]
[1724484634212,3.61379,2767.2,2767.0,0.07619964]
[1724484634419,3.61379,2767.2,2766.9,0.07623604]
[1724484634628,3.61379,2767.2,2767.1,0.07616323]
[1724484634830,3.61379,2767.2,2767.0,0.07619964]
[1724484635027,3.61379,2767.2,2767.1,0.07616323]
[1724484635400,3.61379,2767.2,2766.6,3.61453]
[1724484635604,3.61379,2767.2,2767.1,0.07576216]
[1724484635846,3.61379,2767.2,2766.6,3.61453]
[1724484636042,3.61379,2767.2,2767.1,0.07576216]
[1724484636250,3.61379,2767.2,2766.6,3.61453]
[1724484636451,3.61379,2767.2,2767.1,0.07576216]
[1724484636653,3.61379,2767.2,2766.6,3.61453]
[1724484636820,3.61379,2767.2,2767.1,0.07576216]
[1724484637025,3.61379,2767.2,2766.6,3.61453]
[1724484637226,3.61379,2767.2,2767.1,0.07576216]
[1724484637421,3.61379,2767.2,2766.6,3.61453]
[1724484637620,3.61379,2767.2,2767.1,0.07576216]
[1724484637822,3.61379,2767.2,2766.6,3.61453]
[1724484638022,3.61339,2767.5,2767.1,2.51926216]
[1724484638223,3.61339,2767.5,2767.1,3.71027329]
[1724484638420,7.22634,2767.7,2767.2,0.07572576]
[1724484638618,3.61327,2767.6,2767.2,0.07572576]
[1724484639515,3.61338,2767.5,2767.2,0.07572576]
[1724484643224,3.6135,2767.4,2767.2,0.07572576]
[1724484644028,3.61333,2767.6,2767.2,0.32764834]
[1724484645930,3.61338,2767.5,2767.2,0.32764834]
[1724484648561,3.61338,2767.5,2767.2,0.07572576]
[1724484649347,7.22684,2767.5,2767.2,0.07572576]
[1724484649652,3.61338,2767.5,2767.2,0.07572576]
[1724484650426,3.61318,2767.7,2767.3,3.64197329]
[1724484650649,3.61318,2767.7,2767.3,2.3752]
[1724484650850,3.61318,2767.7,2767.4,0.23752]
[1724484651167,3.61331,2767.6,2767.5,0.0748526]
[1724484651574,3.61331,2767.6,2767.3,2.3752]
[1724484651861,3.61331,2767.6,2767.5,0.0748526]
[1724484652073,3.61331,2767.6,2767.4,0.07488899]
[1724484652370,3.61331,2767.6,2767.5,0.0748526]
[1724484652573,3.61331,2767.6,2767.3,2.3752]
[1724484652743,3.61331,2767.6,2767.5,0.0748526]
[1724484653070,3.61331,2767.6,2767.3,2.61272]
[1724484653225,3.61331,2767.6,2767.5,0.0748526]
[1724484653425,3.61331,2767.6,2767.3,2.61272]
[1724484653652,3.61331,2767.6,2767.5,0.0748526]
[1724484653817,3.61331,2767.6,2767.4,0.07488899]
[1724484654020,3.61331,2767.6,2767.3,2.61272]
[1724484654236,3.61331,2767.6,2767.5,0.0748526]
[1724484654434,3.61331,2767.6,2767.3,2.61272]
[1724484654670,3.61331,2767.6,2767.5,0.0748526]
[1724484658093,3.61311,2767.7,2767.5,0.0748526]
[1724484662545,3.61311,2767.7,2767.3,2.3752]
[1724484662772,7.22632,2767.7,2767.4,0.07460582]
[1724484663420,3.61324,2767.6,2767.4,0.07460582]
[1724484663623,3.61336,2767.5,2767.4,0.07460582]
[1724484663777,3.61336,2767.5,2767.1,2.3831]
[1724484664102,3.61336,2767.5,2767.4,0.07460582]
[1724484664303,3.61336,2767.5,2767.1,2.3831]
[1724484664489,3.61336,2767.5,2767.4,0.07460582]
[1724484664695,3.61336,2767.5,2767.1,2.3831]
[1724484665320,3.61336,2767.5,2767.2,0.07467862]
[1724484666409,3.61336,2767.5,2767.2,0.80853381]
[1724484666914,3.61311,2767.7,2767.2,0.80853381]
[1724484668414,3.61311,2767.7,2767.2,4.42224381]
[1724484670579,7.22633,2767.7,2767.2,0.80853381]
[1724484671388,3.61332,2767.6,2767.2,0.07467862]
[1724484678012,14.61199329,2767.9,2767.2,3.68842862]
[1724484679400,3.61311,2767.7,2767.2,3.68842862]
[1724484679604,3.61311,2767.7,2767.3,2.4777]
[1724484679803,3.61311,2767.7,2767.3,2.54976923]
[1724484692132,11.06292,2767.9,2767.3,6.90634848]
[1724484693275,14.67585,2767.9,2767.3,6.90634848]
[1724484694172,3.61264,2768.1,2767.5,2.3596]
[1724484694374,3.61264,2768.1,2767.6,3.61323]
[1724484694685,3.61264,2768.1,2767.6,0.07175651]
[1724484694686,7.26841329,2768.1,2767.6,0.07175651]
[1724484694860,3.61273,2768.0,2767.6,0.07175651]
[1724484695256,3.61273,2768.0,2767.4,3.61339]
[1724484695570,3.61285,2767.9,2767.7,0.07172012]
[1724484695771,3.61285,2767.9,2767.4,4.64635993]
[1724484695965,3.61285,2767.9,2767.8,0.07168373]
[1724484696742,3.61285,2767.9,2767.4,3.61339]
[1724484696865,3.61285,2767.9,2767.8,0.07168373]
[1724484697061,3.61285,2767.9,2767.4,3.61339]
[1724484697262,3.61285,2767.9,2767.8,0.07168373]
[1724484697519,3.61285,2767.9,2767.4,3.61339]
[1724484697717,3.61285,2767.9,2767.8,0.07168373]
[1724484697871,3.61285,2767.9,2767.4,3.61339]
[1724484698566,3.61285,2767.9,2767.5,0.0717929]
[1724484698814,3.61272,2768.0,2767.6,2.3596]
[1724484699173,3.61275,2768.0,2767.6,2.43135651]
[1724484700107,3.61286,2767.9,2767.6,2.43135651]
[1724484701685,3.61286,2767.9,2767.6,0.07175651]
[1724484704259,3.61286,2767.9,2767.7,2.3046]
[1724484704462,3.61286,2767.9,2767.7,2.37632012]
[1724484708222,3.61286,2767.9,2767.7,0.07172012]
[1724484708441,3.61286,2767.9,2767.5,2.98338122]
[1724484709160,3.61286,2767.9,2767.6,0.07159591]
[1724484712794,7.22579,2767.9,2767.6,0.07159591]
[1724484712979,3.61286,2767.9,2767.6,0.07159591]
[1724484716659,8.49297329,2767.7,2767.6,0.07159591]
[1724484716897,3.61332,2767.6,2767.0,2.3046]
[1724484717284,3.61332,2767.6,2767.1,0.06240051]
[1724484720675,7.22632,2767.7,2767.1,0.06240051]
[1724484720960,3.6131,2767.7,2767.1,0.06240051]
[1724484721359,3.61376,2767.2,2767.1,0.06240051]
[1724484721808,3.6139,2767.1,2766.6,3.61447]
[1724484721962,3.6139,2767.1,2766.5,5.45443167]
[1724484721963,3.6139,2767.1,2766.5,3.56927329]
[1724484722460,3.6139,2767.1,2766.5,2.3025]
[1724484722689,3.61411,2767.0,2766.5,2.3025]
[1724484723007,3.61411,2767.0,2766.5,3.20942852]
[1724484723178,3.6139,2767.1,2766.5,3.20942852]
[1724484723376,3.6139,2767.1,2766.5,6.82406852]
[1724484724005,14.73542329,2767.3,2765.9,0.75363185]
[1724484724006,1.26677329,2766.6,2765.9,0.75363185]
[1724484724228,1.26677329,2766.6,2765.8,2.3025]
[1724484724393,1.26677329,2766.4,2765.6,4.88251329]
[1724484724557,1.26677329,2766.4,2765.7,3.61563]
[1724484724558,3.61497,2766.3,2765.7,3.61563]
[1724484725106,4.88218329,2766.0,2765.4,3.61609]
[1724484725319,3.61546,2765.9,2765.4,3.61609]
[1724484725663,6.02027,2766.1,2765.4,3.61609]
[1724484725859,6.02027,2766.1,2765.4,4.69625633]
[1724484725860,2.405,2766.1,2765.4,4.69625633]
[1724484726210,11.06506,2766.2,2765.8,3.61547]
[1724484726211,7.45,2766.2,2765.8,3.61547]
[1724484727375,7.45,2766.2,2765.7,1.26677329]
[1724484727376,11.0651,2766.2,2765.7,1.26677329]
[1724484727706,11.0651,2766.2,2765.8,0.05269887]
[1724484727909,11.0651,2766.2,2765.6,3.61578]
[1724484728115,11.0651,2766.2,2765.9,0.05266244]
[1724484728401,11.0651,2766.2,2765.7,0.55]
[1724484728613,11.0651,2766.2,2766.0,0.052626]
[1724484728908,3.6151,2766.2,2766.1,0.05258957]
[1724484729209,3.61522,2766.1,2765.7,0.55]
[1724484729392,3.61522,2766.1,2765.6,0.55]
[1724484731304,7.23052,2766.1,2765.6,0.55]
[1724484731518,3.61522,2766.1,2765.6,0.55]
[1724484731662,7.23052,2766.1,2765.6,0.55]
[1724484732021,3.61536,2766.0,2765.6,0.55]
[1724484733391,3.61516,2766.2,2765.6,1.09327233]
[1724484733791,3.61521,2766.1,2765.6,1.09327233]
[1724484736065,7.23051,2766.1,2765.6,1.09327233]
[1724484736997,3.61541,2766.0,2765.6,1.09327233]
[1724484737200,3.61569,2765.8,2765.3,3.56927329]
[1724484737384,3.61568,2765.8,2765.4,0.55]
[1724484737714,3.61572,2765.7,2765.4,0.55]
[1724484738410,7.23137,2765.8,2765.4,0.55]
[1724484738718,3.61568,2765.8,2765.3,2.3025]
[1724484738901,3.61585,2765.6,2765.4,0.05330988]
[1724484740219,3.61568,2765.8,2765.4,0.05330988]
[1724484740802,3.61574,2765.7,2765.4,0.05330988]
[1724484741773,3.61567,2765.8,2765.2,4.88312329]
[1724484741998,3.61567,2765.8,2765.5,0.0532401]
[1724484742223,3.61567,2765.8,2765.2,4.88312329]
[1724484742510,3.61567,2765.8,2765.6,0.05320365]
[1724484742715,3.61567,2765.8,2765.2,4.88312329]
[1724484742876,3.61567,2765.8,2765.7,0.05316721]
[1724484743071,3.61567,2765.8,2765.2,8.49941329]
[1724484743273,3.61567,2765.8,2765.7,0.05316721]
[1724484743511,3.61567,2765.8,2765.2,9.88529462]
[1724484744101,3.61567,2765.8,2765.3,0.053313]
[1724484744486,3.61567,2765.8,2765.2,9.88529462]
[1724484744701,3.61567,2765.8,2765.4,0.05327655]
[1724484744922,3.61567,2765.8,2765.3,0.053313]
[1724484745135,3.61567,2765.8,2765.5,0.0532401]
[1724484745418,9.7776,2766.2,2765.6,7.24251329]
[1724484745589,9.7776,2766.2,2765.8,1.26677329]
[1724484745590,7.45,2766.2,2765.8,1.26677329]
[1724484745802,7.45,2766.2,2765.9,0.55]
[1724484746010,3.61468,2766.5,2766.0,3.61524]
[1724484746391,3.61468,2766.5,2766.1,0.0536716]
[1724484747095,3.61468,2766.5,2765.9,4.16543]
[1724484747433,3.61482,2766.4,2766.0,0.05370803]
[1724484749622,7.22972,2766.4,2766.0,0.05370803]
[1724484749998,3.61482,2766.4,2766.0,0.05370803]
[1724484751340,7.22971,2766.4,2766.0,0.05370803]
[1724484751551,7.22973,2766.4,2766.0,0.05370803]
[1724484752335,3.61494,2766.3,2766.0,0.05370803]
[1724484755696,3.61494,2766.3,2766.0,2.41370803]
[1724484758341,3.61506,2766.2,2766.0,2.41370803]
[1724484758645,3.61506,2766.2,2766.0,0.05370803]
[1724484760299,3.61482,2766.4,2766.0,0.05370803]
[1724484760497,3.59437329,2766.6,2766.0,0.05370803]
[1724484760498,3.61495,2766.3,2766.0,0.05370803]
[1724484760723,3.61462,2766.6,2766.1,2.3068]
[1724484760927,3.61487,2766.4,2766.1,2.3068]
[1724484761133,3.61487,2766.4,2766.2,0.05345027]
[1724484761453,7.22976,2766.4,2766.2,0.05345027]
[1724484761754,3.61495,2766.3,2766.1,2.3068]
[1724484762212,3.61487,2766.4,2765.9,2.8568]
[1724484762213,3.61509,2766.2,2765.9,2.8568]
[1724484762417,3.61509,2766.2,2765.7,2.3068]
[1724484762662,3.61519,2766.1,2766.0,0.05352313]
[1724484762962,3.61533,2766.0,2765.7,2.3068]
[1724484763454,3.61509,2766.2,2765.7,2.3068]
[1724484763612,3.61522,2766.1,2765.7,2.3068]
[1724484764124,3.61509,2766.2,2765.7,3.38734333]
[1724484764309,7.23027,2766.2,2765.7,3.38734333]
[1724484764509,3.6152,2766.1,2765.7,3.38734333]
[1724484765359,3.61509,2766.2,2765.7,3.38734333]
[1724484768174,7.23025,2766.2,2765.7,3.38734333]
[1724484768361,3.61509,2766.2,2765.7,2.3068]
[1724484770146,7.23025,2766.2,2765.7,2.3068]
[1724484770330,7.23024,2766.2,2765.6,4.88261329]
[1724484770538,7.23024,2766.2,2765.5,8.14780098]
[1724484770539,3.61527,2766.1,2765.5,8.14780098]
[1724484770870,3.6154,2766.0,2765.6,1.25728727]
[1724484771661,3.6154,2766.0,2765.5,2.3068]
[1724484772236,3.6154,2766.0,2765.5,5.92273]
[1724484772748,3.6154,2766.0,2765.6,0.05360135]
[1724484775071,10.76907329,2766.2,2765.6,3.66943135]
[1724484775553,7.15391329,2766.2,2765.6,3.66943135]
[1724484776159,5.88714,2766.2,2765.6,3.66943135]
[1724484776363,5.88714,2766.2,2765.6,4.75532181]
[1724484776562,5.88714,2766.2,2765.6,6.0220951]
[1724484777079,5.88714,2766.2,2765.6,4.75532181]
[1724484777251,5.88714,2766.2,2765.6,3.66943135]
[1724484780368,9.5023,2766.2,2765.6,3.66943135]
[1724484780583,9.50229,2766.2,2765.6,3.66943135]
[1724484780735,3.6152,2766.1,2765.6,0.05360135]
[1724484780940,4.69211133,2766.1,2765.6,0.05360135]
[1724484781217,3.6152,2766.1,2765.6,3.66944135]
[1724484781478,3.61538,2766.0,2765.6,0.05360135]
[1724484781697,3.61535,2766.0,2765.6,0.05360135]
[1724484782781,7.23077,2766.0,2765.6,0.05360135]
[1724484782938,2.4308,2765.9,2765.4,3.61609]
[1724484783247,3.69757329,2765.9,2765.5,0.05358003]
[1724484783482,4.37824985,2765.9,2765.5,0.05358003]
[1724484784769,3.11147656,2765.9,2765.5,0.05358003]
[1724484785104,2.4308,2765.9,2765.5,0.05358003]
[1724484786509,6.04665,2765.6,2765.5,0.05358003]
[1724484787144,7.23213,2765.5,2764.9,3.61669]
[1724484787301,4.88280329,2765.5,2764.9,3.61669]
[1724484787812,4.88280329,2765.5,2765.0,0.05213381]
[1724484788019,5.97574162,2765.5,2765.0,0.05213381]
[1724484788390,9.59181162,2765.5,2765.0,0.05213381]
[1724484788720,5.97574162,2765.5,2765.0,0.05213381]
[1724484789273,9.59183162,2765.5,2765.0,0.05213381]
[1724484790173,3.61613,2765.4,2765.0,0.05213381]
[1724484790502,3.61625,2765.3,2765.0,0.05213381]
[1724484790922,3.61625,2765.3,2764.7,7.14892329]
[1724484791501,3.61625,2765.3,2764.8,0.05220267]
[1724484791898,3.61625,2765.3,2764.9,0.05216621]
[1724484792112,3.61625,2765.3,2764.7,10.76587329]
[1724484792316,3.61625,2765.3,2764.8,3.61687]
[1724484792517,5.97577162,2765.5,2764.9,3.61676]
[1724484792518,9.59187162,2765.5,2764.9,3.61676]
[1724484792715,3.61612,2765.4,2765.0,0.05212975]
[1724484793330,3.61626,2765.3,2765.0,0.05212975]
[1724484793506,3.61626,2765.3,2764.7,10.57565733]
[1724484793837,3.61626,2765.3,2764.8,0.05220267]
[1724484794206,3.61626,2765.3,2764.7,10.57565733]
[1724484794531,3.61626,2765.3,2764.8,0.05220267]
[1724484794895,3.61626,2765.3,2764.9,0.05216621]
[1724484796634,3.61614,2765.4,2764.9,1.3189395]
[1724484798335,3.61625,2765.3,2764.9,0.05216621]
[1724484798854,3.61625,2765.3,2764.7,10.76583329]
[1724484799003,3.61625,2765.3,2765.0,0.05240822]
[1724484799210,2.4308,2765.2,2764.7,5.88212]
[1724484799442,6.04721,2765.2,2765.1,0.05237176]
[1724484799657,2.4308,2765.2,2764.7,5.88212]
[1724484799853,7.2326,2765.3,2765.1,0.05237176]
[1724484800025,7.23258,2765.3,2764.7,5.88212]
[1724484800224,7.23258,2765.3,2765.2,0.0523353]
[1724484800427,3.61637,2765.2,2764.7,5.88212]
[1724484800961,3.61637,2765.2,2764.8,0.05254547]
[1724484801160,3.61637,2765.2,2764.7,5.88212]
[1724484801362,3.61637,2765.2,2764.8,0.05254547]
[1724484801533,3.61637,2765.2,2764.7,5.88212]
[1724484801735,3.61637,2765.2,2764.8,0.05254547]
[1724484801919,3.61637,2765.2,2764.7,5.88212]
[1724484802264,7.23283,2765.2,2764.8,0.05254547]
[1724484802418,4.70296392,2765.2,2764.8,0.05254547]
[1724484802615,4.70296392,2765.2,2764.7,2.2652]
[1724484802851,4.70296392,2765.2,2764.8,0.05254547]
[1724484803360,4.70296392,2765.2,2764.9,0.05250901]
[1724484803523,4.70296392,2765.2,2764.7,2.2652]
[1724484803725,4.70296392,2765.2,2764.8,0.05254547]
[1724484803940,4.70296392,2765.2,2764.7,2.2652]
[1724484804234,4.70296392,2765.2,2764.8,0.05254547]
[1724484804776,4.70296392,2765.2,2764.9,0.05250901]
[1724484805062,4.70296392,2765.2,2764.7,5.88222]
[1724484805219,3.61637,2765.2,2765.0,0.05247255]
[1724484805422,3.61637,2765.2,2764.7,7.14899329]